bitfinex-derivatives/quotes_BTCF0:USTF0_20241125
["timestamp","ask_amount","ask_price","bid_price","bid_amount"]
[1732502448710,0.25996178,97493.0,97492.0,0.051232]
[1732502449406,0.07542703,97493.0,97492.0,0.051232]
[1732502450109,0.04982703,97493.0,97492.0,0.051232]
[1732502450306,0.18452289,97493.0,97492.0,0.051232]
[1732502450506,0.04982515,97493.0,97492.0,0.051232]
[1732502450703,0.04182515,97493.0,97492.0,0.30772]
[1732502450902,0.18452289,97499.0,97498.0,0.051229]
[1732502451101,0.13576,97509.0,97499.0,0.061238]
[1732502451102,0.18452289,97500.0,97499.0,0.061238]
[1732502451503,0.51455808,97504.0,97503.0,0.051226]
[1732502451703,0.51455808,97504.0,97503.0,0.29647926]
[1732502451910,0.51455808,97504.0,97503.0,0.29687927]
[1732502452210,0.51455808,97504.0,97503.0,0.05162601]
[1732502452211,0.3608,97504.0,97503.0,0.05162601]
[1732502452604,0.34579001,97504.0,97503.0,0.05162601]
[1732502454704,0.39701601,97504.0,97503.0,0.05162601]
[1732502455100,0.34579001,97504.0,97503.0,0.05162601]
[1732502462214,0.19526799,97506.0,97505.0,0.051225]
[1732502462514,0.19526799,97506.0,97505.0,0.29677263]
[1732502463111,0.04150991,97506.0,97505.0,0.05162501]
[1732502463316,0.15375808,97508.0,97507.0,0.051224]
[1732502463513,0.15375808,97508.0,97507.0,0.29635938]
[1732502463716,0.15375808,97508.0,97507.0,0.29675939]
[1732502463910,0.15375808,97509.0,97507.0,0.24553539]
[1732502464113,0.15375808,97509.0,97508.0,0.051224]
[1732502464314,0.14875808,97509.0,97508.0,0.05162401]
[1732502465810,0.19998108,97509.0,97508.0,0.05162401]
[1732502466720,0.10104249,97509.0,97508.0,0.05162401]
[1732502467712,0.04981949,97509.0,97508.0,0.05162401]
[1732502467916,0.04480949,97509.0,97508.0,0.72010401]
[1732502468118,0.18448971,97520.0,97517.0,0.051219]
[1732502468318,0.18448971,97525.0,97520.0,0.051217]
[1732502468517,0.0333,97527.0,97520.0,0.051217]
[1732502468518,0.21778971,97527.0,97520.0,0.051217]
[1732502468823,0.21778971,97527.0,97526.0,0.051214]
[1732502469018,0.18444948,97528.0,97526.0,0.051214]
[1732502469222,0.18444948,97531.0,97527.0,0.3608]
[1732502469412,0.18444948,97535.0,97534.0,0.05121]
[1732502469613,0.0332,97538.0,97535.0,0.01]
[1732502469614,0.18444948,97536.0,97535.0,0.01]
[1732502470011,0.00013079,97537.0,97536.0,0.051209]
[1732502470425,0.00013079,97537.0,97536.0,0.05160901]
[1732502470614,0.0332,97538.0,97537.0,0.01487921]
[1732502470812,0.0332,97538.0,97537.0,0.37567921]
[1732502471017,0.16586,97545.0,97537.0,0.37567921]
[1732502471018,0.16586,97545.0,97537.0,0.36120001]
[1732502471224,0.16586,97545.0,97544.0,0.051205]
[1732502471429,0.16586,97545.0,97544.0,0.05160501]
[1732502471726,0.16594443,97545.0,97544.0,0.05160501]
[1732502472630,0.16095443,97545.0,97544.0,0.05160501]
[1732502472823,0.18144393,97545.0,97544.0,0.05160501]
[1732502473527,0.17643393,97545.0,97544.0,0.05160501]
[1732502474628,0.36085213,97545.0,97544.0,0.05160501]
[1732502477330,0.17643393,97545.0,97544.0,0.05160501]
[1732502477518,0.17143393,97545.0,97544.0,0.05160501]
[1732502477921,0.05087393,97545.0,97544.0,0.05160501]
[1732502478126,0.04587393,97545.0,97544.0,0.05160501]
[1732502480236,0.23029308,97545.0,97544.0,0.05160501]
[1732502481025,0.04587393,97545.0,97544.0,0.05160501]
[1732502482828,0.09567275,97545.0,97544.0,0.05160501]
[1732502483531,0.09067275,97545.0,97544.0,0.05160501]
[1732502484639,0.07018325,97545.0,97544.0,0.05160501]
[1732502485033,0.04988325,97545.0,97544.0,0.05160501]
[1732502485230,8.443e-05,97545.0,97544.0,0.05160501]
[1732502485933,0.18440299,97546.0,97545.0,0.00491557]
[1732502486137,0.17447742,97546.0,97545.0,0.3608]
[1732502486437,0.04488361,97546.0,97545.0,0.41240401]
[1732502486639,0.21515646,97559.0,97545.0,0.41240401]
[1732502486640,0.21515646,97559.0,97545.0,0.36120001]
[1732502486844,0.21515646,97559.0,97558.0,0.051197]
[1732502487036,0.21523026,97559.0,97558.0,0.00040001]
[1732502487334,0.21523026,97559.0,97558.0,0.05159701]
[1732502487531,7.38e-05,97559.0,97558.0,0.05159701]
[1732502487731,0.04182032,97564.0,97560.0,0.051196]
[1732502487932,0.3608,97570.0,97564.0,0.0602202]
[1732502487933,0.21513325,97566.0,97564.0,0.0602202]
[1732502488237,0.3608,97570.0,97569.0,0.051192]
[1732502488542,0.3608,97570.0,97569.0,0.05159201]
[1732502488839,0.3558843,97570.0,97569.0,0.05159201]
[1732502489525,0.3558843,97570.0,97569.0,0.23531556]
[1732502489725,0.3558843,97570.0,97569.0,0.05159201]
[1732502490338,0.3558843,97570.0,97569.0,0.23521839]
[1732502490927,0.3558843,97570.0,97569.0,0.05159201]
[1732502491529,0.3558843,97570.0,97569.0,0.23521596]
[1732502491733,0.3558843,97570.0,97569.0,0.23521094]
[1732502492229,8.43e-05,97570.0,97569.0,0.05159201]
[1732502492634,8.43e-05,97570.0,97569.0,0.23520681]
[1732502493535,0.04142281,97574.0,97570.0,0.0049157]
[1732502493743,0.0462733,97573.0,97572.0,0.05119]
[1732502494537,0.04638215,97573.0,97572.0,0.05119]
[1732502496644,0.24600195,97573.0,97563.0,0.40709849]
[1732502497140,0.24600195,97573.0,97572.0,0.05119]
[1732502500839,0.24100195,97573.0,97572.0,0.05119]
[1732502501932,0.24112181,97573.0,97572.0,0.05119]
[1732502502140,0.29090858,97573.0,97572.0,0.05119]
[1732502504644,0.04990663,97573.0,97572.0,0.05119]
[1732502506840,0.15364464,97573.0,97572.0,0.05119]
[1732502507139,0.07102735,97578.0,97576.0,0.051188]
[1732502507446,0.3608,97599.0,97598.0,0.051176]
[1732502507947,0.3608899,97599.0,97598.0,0.051176]
[1732502508249,8.99e-05,97599.0,97598.0,0.051176]
[1732502513751,0.18437766,97601.0,97599.0,0.01492009]
[1732502514246,0.18437766,97601.0,97599.0,0.0153201]
[1732502514546,0.07332252,97603.0,97599.0,0.0153201]
[1732502514748,0.10007363,97600.0,97599.0,0.0153201]
[1732502521851,0.14984394,97600.0,97599.0,0.0153201]
[1732502524255,0.14984394,97600.0,97597.0,0.00012801]
[1732502524256,0.14984628,97600.0,97597.0,0.00012801]
[1732502524457,0.04977265,97599.0,97597.0,0.00012801]
[1732502524851,0.04977265,97599.0,97598.0,0.051176]
[1732502526448,0.04477265,97599.0,97598.0,0.051176]
[1732502526649,0.04477265,97599.0,97598.0,0.23421603]
[1732502527554,0.04477265,97599.0,97597.0,0.00012801]
[1732502527555,0.13504,97599.0,97597.0,0.00012801]
[1732502527760,0.051177,97597.0,97592.0,0.18305508]
[1732502527956,0.3608,97593.0,97589.0,0.18305508]
[1732502528146,0.0004,97598.0,97597.0,0.051177]
[1732502528347,0.18433776,97629.0,97617.0,0.051166]
[1732502528552,0.18433776,97629.0,97600.0,0.051175]
[1732502528553,0.18426092,97638.0,97632.0,0.051158]
[1732502528756,0.24736092,97644.0,97638.0,0.015]
[1732502529057,0.04309,97644.0,97643.0,0.051553]
[1732502529363,0.00509,97644.0,97643.0,0.05164043]
[1732502529661,0.00509,97644.0,97643.0,0.36128743]
[1732502529849,0.00509,97644.0,97643.0,0.00048743]
[1732502531054,0.03769,97644.0,97643.0,0.00048743]
[1732502531249,0.03769,97644.0,97643.0,0.1832864]
[1732502531454,0.03769,97644.0,97643.0,0.00048743]
[1732502531763,0.04537102,97644.0,97643.0,0.00048743]
[1732502532264,0.04037102,97644.0,97643.0,0.00048743]
[1732502532858,0.53187194,97644.0,97639.0,0.18279897]
[1732502533060,0.18426092,97641.0,97637.0,0.0004]
[1732502533252,0.051155,97638.0,97637.0,0.0004]
[1732502533455,0.05883602,97638.0,97637.0,0.0004]
[1732502533754,0.051155,97638.0,97637.0,0.0004]
[1732502535050,0.046155,97638.0,97637.0,0.0004]
[1732502536960,0.041155,97638.0,97637.0,0.0004]
[1732502537164,0.171195,97638.0,97637.0,0.0004]
[1732502538261,0.031155,97638.0,97637.0,0.0004]
[1732502540068,0.0004,97640.0,97637.0,0.0004]
[1732502540069,0.0004,97640.0,97638.0,0.051155]
[1732502540262,0.18807324,97644.0,97642.0,0.051153]
[1732502540459,0.0322,97644.0,97642.0,0.051153]
[1732502540765,8.303e-05,97645.0,97644.0,0.051152]
[1732502540981,0.1682,97656.0,97645.0,0.00451697]
[1732502540982,0.04096286,97651.0,97645.0,0.00451697]
[1732502541279,0.0332,97656.0,97654.0,0.051147]
[1732502541465,0.04974418,97655.0,97654.0,0.051147]
[1732502541767,0.04022721,97655.0,97654.0,0.051147]
[1732502541960,0.26625227,97659.0,97656.0,0.051146]
[1732502542167,0.36212,97664.0,97655.0,0.005]
[1732502542466,0.36212,97664.0,97662.0,0.051142]
[1732502542467,0.35086333,97664.0,97662.0,0.051142]
[1732502542662,0.37132994,97664.0,97662.0,0.051142]
[1732502542961,0.21510727,97665.0,97662.0,0.3608]
[1732502543162,0.135,97672.0,97671.0,0.051138]
[1732502543359,0.23537978,97673.0,97672.0,0.01001]
[1732502543565,0.21489028,97677.0,97673.0,0.00490137]
[1732502543763,0.135,97682.0,97672.0,0.0004]
[1732502543970,0.135,97682.0,97676.0,0.0004]
[1732502543971,0.40080812,97678.0,97676.0,0.0004]
[1732502544162,0.38126661,97678.0,97677.0,0.0004]
[1732502544875,0.38139603,97678.0,97677.0,0.0004]
[1732502545074,0.43253003,97678.0,97677.0,0.0004]
[1732502548576,0.42763003,97678.0,97677.0,0.0004]
[1732502550674,0.42263003,97678.0,97677.0,0.0004]
[1732502554473,0.41762003,97678.0,97677.0,0.0004]
[1732502554777,0.36648603,97678.0,97677.0,0.0004]
[1732502556478,0.00012942,97678.0,97677.0,0.0004]
[1732502556675,0.04986373,97678.0,97671.0,0.051538]
[1732502556877,0.051137,97673.0,97672.0,0.051137]
[1732502557079,0.10087196,97673.0,97672.0,0.051137]
[1732502557982,0.04973496,97673.0,97672.0,0.051137]
[1732502558180,0.24588419,97678.0,97676.0,0.051135]
[1732502558374,0.04973494,97677.0,97676.0,0.051135]
[1732502564379,0.04473494,97677.0,97676.0,0.051135]
[1732502564574,0.20987646,97677.0,97676.0,0.051135]
[1732502564879,0.00012942,97678.0,97676.0,0.65776404]
[1732502565074,0.00012942,97678.0,97676.0,0.35598052]
[1732502565273,0.00012942,97678.0,97676.0,0.051135]
[1732502565877,0.15347699,97681.0,97680.0,0.051133]
[1732502566182,0.15160641,97681.0,97680.0,0.051533]
[1732502566783,0.15160641,97681.0,97680.0,0.0004]
[1732502566784,0.14869218,97681.0,97680.0,0.0004]
[1732502566985,8.577e-05,97681.0,97680.0,0.18310425]
[1732502567181,0.03168577,97681.0,97680.0,0.0004]
[1732502570680,0.051135,97677.0,97671.0,0.0004]
[1732502570881,0.3608,97672.0,97671.0,0.0004]
[1732502571077,0.49564,97672.0,97671.0,0.0004]
[1732502571589,0.546778,97672.0,97671.0,0.0004]
[1732502572189,1.09969277,97672.0,97671.0,0.0004]
[1732502572383,0.05115,97649.0,97647.0,0.08195]
[1732502572587,0.18422094,97648.0,97647.0,0.08195]
[1732502572781,0.0008,97648.0,97647.0,0.08195]
[1732502573191,0.18502551,97648.0,97647.0,0.08195]
[1732502573394,0.0008,97648.0,97647.0,0.08195]
[1732502573686,0.0008,97648.0,97642.0,0.36233622]
[1732502573687,0.051152,97645.0,97644.0,0.051152]
[1732502574284,0.051952,97645.0,97644.0,0.051152]
[1732502577393,0.051952,97645.0,97644.0,0.411952]
[1732502578392,0.0008,97645.0,97644.0,0.411952]
[1732502579391,0.05054515,97645.0,97644.0,0.411952]
[1732502579689,0.23477593,97645.0,97644.0,0.3608]
[1732502579895,0.0008,97645.0,97644.0,0.60339768]
[1732502580083,0.051152,97644.0,97642.0,0.00153622]
[1732502580484,0.11355426,97643.0,97642.0,0.00153622]
[1732502580687,0.24839426,97643.0,97642.0,0.00153622]
[1732502581193,0.19864,97643.0,97642.0,0.00153622]
[1732502581386,0.19364,97643.0,97642.0,0.00153622]
[1732502582188,0.13564,97643.0,97642.0,0.00153622]
[1732502582391,0.25346524,97643.0,97642.0,0.00153622]
[1732502582594,0.25266525,97643.0,97642.0,0.00153622]
[1732502582792,0.04003829,97648.0,97642.0,0.00153622]
[1732502582995,0.13484,97651.0,97642.0,0.00153622]
[1732502583294,0.13484,97651.0,97650.0,0.29505064]
[1732502583491,0.3608,97655.0,97647.0,0.0004]
[1732502583688,0.3608,97655.0,97651.0,0.24389983]
[1732502583893,0.411946,97655.0,97654.0,0.0004]
[1732502584089,0.59653403,97655.0,97654.0,0.0004]
[1732502585192,0.58698017,97655.0,97654.0,0.0004]
[1732502585884,0.63672774,97655.0,97654.0,0.0004]
[1732502586096,0.65719945,97655.0,97654.0,0.0004]
[1732502586293,0.96439945,97655.0,97654.0,0.0004]
[1732502587395,1.21002737,97655.0,97647.0,0.0004]
[1732502587695,0.051153,97643.0,97642.0,0.00153622]
[1732502587886,0.60416056,97643.0,97642.0,0.00153622]
[1732502588092,0.60496057,97643.0,97642.0,0.00153622]
[1732502588494,0.59996057,97643.0,97642.0,0.00153622]
[1732502588691,0.10428057,97643.0,97642.0,0.00153622]
[1732502588891,0.05312757,97643.0,97642.0,0.00153622]
[1732502589199,0.00838,97643.0,97642.0,0.00153622]
[1732502589592,0.00337,97643.0,97642.0,0.00153622]
[1732502591194,0.0130721,97643.0,97642.0,0.00153622]
[1732502592290,0.00337,97643.0,97642.0,0.00153622]
[1732502592490,0.18424176,97648.0,97646.0,0.051151]
[1732502592691,0.18261176,97648.0,97646.0,0.051151]
[1732502592895,0.051149,97651.0,97647.0,0.0004]
[1732502593198,0.051148,97652.0,97650.0,0.0004]
[1732502593601,0.051148,97652.0,97651.0,0.0004]
[1732502599719,0.046718,97652.0,97651.0,0.0004]
[1732502603904,0.09647092,97652.0,97651.0,0.0004]
[1732502604608,0.10415709,97652.0,97651.0,0.0004]
[1732502608207,0.41135709,97652.0,97651.0,0.0004]
[1732502608607,0.41136503,97652.0,97651.0,0.0004]
[1732502608811,0.41136503,97652.0,97642.0,0.00153622]
[1732502608812,0.051153,97643.0,97642.0,0.00153622]
[1732502609110,0.051161,97628.0,97625.0,0.051162]
[1732502609406,0.10900803,97628.0,97625.0,0.051162]
[1732502609907,0.10900803,97628.0,97620.0,0.0332]
[1732502609908,0.10131392,97628.0,97620.0,0.0332]
[1732502610208,0.10141439,97628.0,97614.0,0.60469983]
[1732502610415,0.10141439,97628.0,97614.0,0.3608]
[1732502610607,0.10141439,97628.0,97613.0,0.051168]
[1732502610908,0.10141439,97628.0,97615.0,0.051167]
[1732502611110,0.10141439,97628.0,97618.0,0.051166]
[1732502611309,0.14163759,97628.0,97618.0,0.051166]
[1732502611819,0.14163759,97628.0,97626.0,0.051161]
[1732502612002,0.14163759,97628.0,97627.0,0.03238229]
[1732502612003,0.04525339,97628.0,97627.0,0.03238229]
[1732502612206,0.04525339,97628.0,97627.0,0.06238229]
[1732502612709,0.15405249,97628.0,97627.0,0.06238229]
[1732502612910,0.00050047,97628.0,97627.0,0.06238229]
[1732502613116,0.05166147,97628.0,97627.0,0.03238229]
[1732502613318,0.23591525,97628.0,97627.0,0.03238229]
[1732502614003,0.05166147,97628.0,97627.0,0.03238229]
[1732502614314,0.051161,97628.0,97627.0,0.03238229]
[1732502614516,0.23091525,97628.0,97627.0,0.08354329]
[1732502614716,0.18425378,97629.0,97628.0,0.051561]
[1732502614918,0.1348,97632.0,97628.0,0.051561]
[1732502614919,0.185959,97632.0,97629.0,0.05116]
[1732502615113,0.1348,97632.0,97629.0,0.05116]
[1732502615409,0.05116,97630.0,97629.0,0.05116]
[1732502616015,0.00010482,97631.0,97630.0,0.05607]
[1732502616216,0.051158,97634.0,97631.0,0.00480518]
[1732502616517,0.04635282,97634.0,97633.0,0.051558]
[1732502616914,0.1348,97635.0,97634.0,0.051157]
[1732502617413,0.18604506,97635.0,97634.0,0.051557]
[1732502618520,0.54684506,97635.0,97634.0,0.051557]
[1732502618817,0.18604506,97635.0,97634.0,0.051557]
[1732502619016,0.18604506,97635.0,97634.0,0.0004]
[1732502619317,0.54684506,97635.0,97634.0,0.0004]
[1732502620415,0.54184506,97635.0,97634.0,0.0004]
[1732502623429,0.41204506,97635.0,97634.0,0.0004]
[1732502623719,0.66593743,97635.0,97634.0,0.0004]
[1732502623920,0.18256506,97635.0,97634.0,0.0004]
[1732502624124,0.02047596,97636.0,97634.0,0.0004]
[1732502624323,0.13632,97638.0,97637.0,0.051156]
[1732502624620,0.48337237,97643.0,97640.0,0.051154]
[1732502624621,0.14304689,97641.0,97640.0,0.051154]
[1732502624820,0.13632,97642.0,97641.0,0.005]
[1732502624821,0.25894542,97642.0,97641.0,0.005]
[1732502625012,0.12632,97642.0,97640.0,0.051554]
[1732502625213,8.463e-05,97641.0,97640.0,0.051554]
[1732502625425,0.00048463,97641.0,97640.0,0.412354]
[1732502625719,0.12262542,97654.0,97652.0,0.051148]
[1732502625920,0.12262542,97654.0,97641.0,0.0004]
[1732502625921,0.48342542,97655.0,97654.0,0.00501]
[1732502626116,0.47841542,97655.0,97653.0,0.05154701]
[1732502626313,0.47841542,97655.0,97654.0,0.00040001]
[1732502626514,0.35588748,97655.0,97654.0,0.00040001]
[1732502627421,0.4785129,97655.0,97654.0,0.00040001]
[1732502627627,0.35588748,97655.0,97654.0,0.00040001]
[1732502628325,9.748e-05,97655.0,97654.0,0.00040001]
[1732502628527,0.02056625,97655.0,97654.0,0.00040001]
[1732502628725,0.02056625,97655.0,97654.0,0.06130001]
[1732502629023,0.02315034,97655.0,97654.0,0.06130001]
[1732502629230,0.11500727,97655.0,97654.0,0.06130001]
[1732502629633,0.02315034,97655.0,97654.0,0.06130001]
[1732502630230,0.01823435,97655.0,97654.0,0.06130001]
[1732502630819,0.01824784,97655.0,97654.0,0.06130001]
[1732502631430,0.00768159,97655.0,97654.0,0.06130001]
[1732502632021,8.401e-05,97655.0,97654.0,0.06130001]
[1732502632632,0.00768159,97655.0,97654.0,0.06130001]
[1732502633135,8.401e-05,97655.0,97654.0,0.06130001]
[1732502633728,0.00980347,97655.0,97654.0,0.06130001]
[1732502633923,0.01740105,97655.0,97654.0,0.06130001]
[1732502634523,0.13030701,97655.0,97654.0,0.06130001]
[1732502634730,0.13030701,97655.0,97654.0,0.00040001]
[1732502635530,0.13999304,97655.0,97654.0,0.00040001]
[1732502636031,0.13499304,97655.0,97654.0,0.00040001]
[1732502636636,0.01236762,97655.0,97654.0,0.00040001]
[1732502636836,0.00735762,97655.0,97654.0,0.00040001]
[1732502637029,0.00748865,97655.0,97654.0,0.00040001]
[1732502637537,0.00013103,97655.0,97654.0,0.00040001]
[1732502638436,0.00013103,97655.0,97654.0,0.30760001]
[1732502638641,0.12262542,97656.0,97655.0,0.05601497]
[1732502638834,0.11775645,97656.0,97655.0,0.358346]
[1732502639036,0.11775645,97656.0,97655.0,0.49506601]
[1732502639732,0.11275645,97656.0,97655.0,0.49506601]
[1732502640438,0.11275645,97656.0,97655.0,0.18786601]
[1732502640833,0.00011236,97658.0,97657.0,0.051145]
[1732502641040,0.051142,97663.0,97658.0,0.00488764]
[1732502641243,0.04625436,97663.0,97662.0,0.051143]
[1732502641443,0.3608,97676.0,97662.0,0.00040001]
[1732502641741,0.05114,97669.0,97668.0,0.05114]
[1732502641939,0.17595939,97677.0,97668.0,0.05114]
[1732502641940,0.17595939,97677.0,97668.0,0.3608]
[1732502642133,0.046126,97676.0,97675.0,0.051136]
[1732502642333,0.0462406,97676.0,97675.0,0.051136]
[1732502642938,0.3608,97684.0,97676.0,0.0048854]
[1732502643138,0.3608,97684.0,97668.0,0.3608]
[1732502643335,0.3608,97684.0,97682.0,0.051132]
[1732502643643,0.20414455,97687.0,97683.0,0.3608]
[1732502643843,0.20414455,97687.0,97685.0,0.05113]
[1732502644041,0.02056949,97686.0,97685.0,0.05113]
[1732502644736,0.00010391,97686.0,97685.0,0.41193]
[1732502645142,0.15301455,97687.0,97686.0,0.00089609]
[1732502646041,0.15313252,97687.0,97686.0,0.00089609]
[1732502647034,0.14824643,97687.0,97685.0,0.41193]
[1732502647245,0.02046302,97690.0,97687.0,0.00488203]
[1732502647440,0.02046302,97690.0,97685.0,0.3608]
[1732502647441,0.01558099,97690.0,97688.0,0.051129]
[1732502647645,0.01558099,97690.0,97689.0,0.00040001]
[1732502648039,0.37638099,97690.0,97689.0,0.00040001]
[1732502648237,0.37649139,97690.0,97689.0,0.00040001]
[1732502648845,0.37649139,97690.0,97689.0,5.426e-05]
[1732502651053,0.37247139,97690.0,97689.0,5.426e-05]
[1732502652050,0.42220444,97690.0,97689.0,5.426e-05]
[1732502655363,0.6058219,97690.0,97689.0,5.426e-05]
[1732502655668,0.60561801,97690.0,97689.0,5.426e-05]
[1732502655864,0.37247139,97690.0,97689.0,5.426e-05]
[1732502656664,0.43497139,97690.0,97689.0,5.426e-05]
[1732502657664,0.07417139,97690.0,97689.0,5.426e-05]
[1732502658460,0.06917139,97690.0,97689.0,5.426e-05]
[1732502658763,0.16092678,97690.0,97689.0,5.426e-05]
[1732502658964,0.06917139,97690.0,97689.0,5.426e-05]
[1732502660974,0.20413139,97690.0,97689.0,5.426e-05]
[1732502662864,0.25386374,97690.0,97689.0,5.426e-05]
[1732502663067,0.051133,97681.0,97680.0,0.00040001]
[1732502663368,0.59662535,97681.0,97680.0,0.00040001]
[1732502663569,0.59662535,97681.0,97680.0,5.445e-05]
[1732502664573,0.59663145,97681.0,97680.0,5.445e-05]
[1732502664770,0.81085182,97681.0,97680.0,5.445e-05]
[1732502665070,0.59663145,97681.0,97680.0,5.445e-05]
[1732502665966,0.23583145,97681.0,97680.0,5.445e-05]
[1732502666370,0.63761746,97681.0,97680.0,5.445e-05]
[1732502669578,0.27681726,97681.0,97680.0,5.445e-05]
[1732502670074,0.27681359,97681.0,97680.0,5.445e-05]
[1732502670675,0.63761359,97681.0,97680.0,5.445e-05]
[1732502670982,0.22707901,97681.0,97680.0,5.445e-05]
[1732502671182,0.58787901,97681.0,97680.0,5.445e-05]
[1732502672176,0.58287901,97681.0,97680.0,5.445e-05]
[1732502674781,0.63261769,97681.0,97680.0,5.445e-05]
[1732502674986,0.49765769,97681.0,97680.0,5.445e-05]
[1732502675180,0.63261769,97681.0,97680.0,5.445e-05]
[1732502675982,0.63261769,97681.0,97656.0,0.115846]
[1732502675983,0.93973769,97681.0,97656.0,0.115846]
[1732502676183,0.45270774,97659.0,97656.0,0.0326]
[1732502676377,0.051145,97658.0,97656.0,0.0326]
[1732502676693,0.051148,97653.0,97651.0,0.051148]
[1732502676876,0.051148,97653.0,97652.0,0.0325]
[1732502677589,0.14304795,97653.0,97652.0,0.0325]
[1732502677978,0.051148,97653.0,97652.0,0.0325]
[1732502678881,0.15357005,97657.0,97652.0,0.0325]
[1732502679088,0.51397004,97659.0,97657.0,0.00459999]
[1732502679287,0.15317004,97662.0,97659.0,0.00959999]
[1732502679481,0.15317004,97671.0,97670.0,0.051139]
[1732502679783,0.15317004,97674.0,97672.0,0.051138]
[1732502679984,0.1368,97675.0,97670.0,0.0004]
[1732502679985,0.1368,97675.0,97673.0,0.0316]
[1732502680190,0.051136,97676.0,97673.0,0.083137]
[1732502680376,0.051136,97676.0,97674.0,0.0004]
[1732502680580,0.051136,97676.0,97675.0,0.0004]
[1732502682289,0.46166953,97676.0,97675.0,0.0004]
[1732502684385,0.45666953,97676.0,97675.0,0.0004]
[1732502685988,0.406936,97676.0,97675.0,0.0004]
[1732502690496,0.45667643,97676.0,97675.0,0.0004]
[1732502690791,0.051143,97662.0,97661.0,0.0004]
[1732502690996,0.59848956,97662.0,97661.0,0.0004]
[1732502691193,0.59888957,97662.0,97661.0,0.0004]
[1732502691686,0.59889009,97662.0,97661.0,0.0004]
[1732502692689,0.59388009,97662.0,97661.0,0.0004]
[1732502695898,0.63376149,97662.0,97661.0,0.0004]
[1732502696400,0.27296149,97662.0,97661.0,0.0004]
[1732502696997,0.45667785,97662.0,97661.0,0.0004]
[1732502697294,0.45666322,97662.0,97661.0,0.0004]
[1732502697498,0.27296149,97662.0,97661.0,0.0004]
[1732502698697,0.26796149,97662.0,97661.0,0.0004]
[1732502699099,0.45165812,97662.0,97661.0,0.0004]
[1732502700093,0.26796149,97662.0,97661.0,0.0004]
[1732502700489,0.45165812,97662.0,97661.0,0.0004]
[1732502700894,0.13116259,97662.0,97661.0,0.0004]
[1732502701089,0.051153,97642.0,97638.0,0.18236616]
[1732502701294,0.548753,97642.0,97630.0,0.0325]
[1732502701698,0.67120046,97642.0,97630.0,0.0325]
[1732502702203,0.54955301,97642.0,97633.0,0.051158]
[1732502702498,0.00080001,97642.0,97641.0,0.05269005]
[1732502702706,0.09181415,97647.0,97642.0,0.00419999]
[1732502702905,0.09181415,97650.0,97647.0,0.00419999]
[1732502703196,0.1368,97651.0,97650.0,0.00419999]
[1732502703402,0.3608,97652.0,97651.0,0.051149]
[1732502703598,0.189261,97665.0,97653.0,0.051147]
[1732502703898,0.187941,97665.0,97661.0,0.0004]
[1732502704101,0.3608,97662.0,97661.0,0.0004]
[1732502704402,0.35080001,97662.0,97661.0,0.0004]
[1732502704798,0.39144703,97662.0,97661.0,0.0004]
[1732502704997,0.35080001,97662.0,97661.0,0.0004]
[1732502705399,0.05114,97667.0,97661.0,0.0004]
[1732502705899,0.05114,97667.0,97666.0,0.0004]
[1732502706199,0.45261415,97670.0,97666.0,0.0004]
[1732502706200,0.09181415,97669.0,97666.0,0.0004]
[1732502706393,0.09181415,97670.0,97668.0,0.051139]
[1732502706589,0.14295315,97670.0,97668.0,0.051539]
[1732502706793,0.14295315,97670.0,97669.0,0.0004]
[1732502707200,0.051139,97670.0,97669.0,0.0004]
[1732502707601,0.14292465,97670.0,97669.0,0.0004]
[1732502708101,0.051139,97670.0,97669.0,0.0004]
[1732502708308,0.06074506,97671.0,97670.0,0.051139]
[1732502708600,0.06074506,97671.0,97670.0,0.412339]
[1732502708601,0.02046625,97671.0,97670.0,0.412339]
[1732502709027,0.38126625,97671.0,97670.0,0.0004]
[1732502709197,0.4730519,97671.0,97670.0,0.0004]
[1732502709392,0.38126625,97671.0,97670.0,0.0004]
[1732502711102,0.52214625,97671.0,97670.0,0.0004]
[1732502713604,0.38126625,97671.0,97670.0,0.0004]
[1732502713800,0.15633625,97671.0,97670.0,0.0004]
[1732502714001,0.14088,97671.0,97670.0,0.0004]
[1732502714208,0.23269635,97671.0,97670.0,0.0004]
[1732502714396,0.14088,97671.0,97670.0,0.0004]
[1732502714797,0.14088,97671.0,97670.0,0.0311]
[1732502715310,0.02046712,97672.0,97670.0,0.0311]
[1732502715805,0.112289,97672.0,97671.0,0.0004]
[1732502716008,0.43100428,97672.0,97671.0,0.0004]
[1732502717310,0.38126712,97672.0,97671.0,0.0322]
[1732502717505,0.53431797,97672.0,97671.0,0.0322]
[1732502718311,0.37626712,97672.0,97671.0,0.0322]
[1732502719205,0.37626712,97672.0,97671.0,0.0004]
[1732502719206,0.4260064,97672.0,97671.0,0.0004]
[1732502719406,0.4260064,97672.0,97671.0,5.41e-05]
[1732502720509,0.4210064,97672.0,97671.0,5.41e-05]
[1732502721612,0.4160064,97672.0,97671.0,5.41e-05]
[1732502723002,0.36626712,97672.0,97671.0,5.41e-05]
[1732502725211,0.4581138,97672.0,97671.0,5.41e-05]
[1732502725409,0.4561138,97672.0,97671.0,5.41e-05]
[1732502725608,0.4531138,97672.0,97671.0,5.41e-05]
[1732502726107,0.4481138,97672.0,97671.0,5.41e-05]
[1732502726314,0.35626712,97672.0,97671.0,5.41e-05]
[1732502729219,0.40740512,97672.0,97671.0,5.41e-05]
[1732502729417,0.42787162,97672.0,97671.0,5.41e-05]
[1732502729913,0.55033973,97672.0,97671.0,5.41e-05]
[1732502730216,0.55037593,97672.0,97671.0,5.41e-05]
[1732502730415,0.43542704,97672.0,97671.0,5.41e-05]
[1732502730815,0.57626704,97672.0,97671.0,5.41e-05]
[1732502731408,0.56871162,97672.0,97671.0,5.41e-05]
[1732502732419,0.56871162,97672.0,97657.0,0.18236616]
[1732502732420,0.75854814,97672.0,97657.0,0.18236616]
[1732502732616,0.051146,97655.0,97653.0,0.18236616]
[1732502732812,0.051146,97655.0,97642.0,0.35511505]
[1732502732813,0.051147,97653.0,97649.0,0.18236616]
[1732502733016,0.36836808,97652.0,97649.0,0.18236616]
[1732502733217,0.36836808,97652.0,97651.0,0.051549]
[1732502733422,0.36836808,97652.0,97651.0,0.0004]
[1732502733620,0.00756808,97652.0,97651.0,0.0004]
[1732502733923,0.00756808,97652.0,97651.0,0.18312685]
[1732502734316,0.00796808,97652.0,97651.0,0.0004]
[1732502734917,0.13063921,97652.0,97651.0,0.0004]
[1732502735221,0.00796808,97652.0,97651.0,0.0004]
[1732502735424,0.13059223,97652.0,97651.0,0.0004]
[1732502737219,0.00796808,97652.0,97651.0,0.0004]
[1732502737619,0.05911608,97652.0,97651.0,0.0004]